fUSD/lending_fUSD_20260228
["ID","MTS","AMOUNT","RATE_DAILY","PERIOD"]
[406883895,1772264634833,-150.0,0.00049499,120]
[406883896,1772264634896,-150.0,0.00049499,120]
[406883897,1772264634963,-150.0,0.00049499,120]
[406883898,1772264635041,-150.0,0.00049499,120]
[406883899,1772264635105,-150.0,0.00049499,120]
[406883900,1772264635174,-250.0,0.00049499,120]
[406883901,1772264635236,-151.02541865,0.00049499,120]
[406883902,1772264635300,-150.0,0.00049499,120]
[406883903,1772264635360,-150.0,0.00049499,120]
[406883904,1772264635421,-258.06666908,0.00049499,120]
[406883905,1772264635481,-150.0,0.00049499,120]
[406883906,1772264635539,-150.0,0.00049499,120]
[406883907,1772264635732,-500.0,0.00049499,120]
[406883908,1772264635792,-500.0,0.00049499,120]
[406883909,1772264635848,-150.0,0.00049499,120]
[406883910,1772264635905,-268.09675466,0.00049499,120]
[406883911,1772264635964,-500.0,0.00049499,120]
[406883912,1772264636026,-163.84344355,0.00049499,120]
[406883913,1772264636084,-500.0,0.00049499,120]
[406883914,1772264636150,-150.0,0.00049499,120]
[406883915,1772264636208,-500.0,0.00049499,120]
[406883916,1772264636266,-365.68114832,0.00049499,120]
[406883917,1772264636327,-150.0,0.00049499,120]
[406883918,1772264636384,-500.0,0.00049499,120]
[406883919,1772264636440,-150.0,0.00049499,120]
[406883920,1772264636495,-500.0,0.00049499,120]
[406883921,1772264636548,-150.0,0.00049499,120]
[406883922,1772264636601,-504.51645155,0.00049499,120]
[406883923,1772264636658,-151.0,0.000495,120]
[406883924,1772264636710,-199.425737,0.000495,120]
[406883925,1772264636763,-151.0,0.000495,120]
[406883926,1772264636816,-162.92719058,0.000498,120]
[406883927,1772264636868,-164.95280072,0.000498,120]
[406883928,1772264636919,-168.24342824,0.000498,120]
[406883929,1772264636969,-954.87289506,0.000498,120]
[406883930,1772264637026,-316280.20565624,0.0005,120]
[406883931,1772264637076,-200.0,0.0005,120]
[406883932,1772264637140,-20160.0,0.0005,120]
[406883933,1772264637195,-150.0,0.0005,40]
[406883934,1772264637249,-338.7912676,0.0005,120]
[406883935,1772264637299,-10000.0,0.0005,120]
[406883936,1772264637350,-150.128892,0.0005,120]
[406883937,1772264637406,-1000000.0,0.0005,70]
[406883938,1772264637462,-1000000.0,0.0005,70]
[406883939,1772264637517,-1000000.0,0.0005,75]
[406883940,1772264637584,-1000000.0,0.0005,75]
[406883941,1772264637650,-620241.90667676,0.0005,80]
[406883944,1772264677248,-500.0,0.00048318,60]
[406883945,1772264677300,-500.0,0.00048866,60]
[406883946,1772264677357,-500.0,0.00049414,60]
[406883947,1772264677409,-219.4871469,0.000498,120]
[406883948,1772264677462,-185.58111583,0.000498,120]
[406883949,1772264677515,-180.23944072,0.000498,120]
[406883950,1772264677569,-500.0,0.00049999,120]
[406883951,1772264677622,-518.5,0.00049999,120]
[406883952,1772264677676,-537.6845,0.00049999,120]
[406883953,1772264677730,-557.5788265,0.00049999,120]
[406883954,1772264677785,-578.20924308,0.00049999,120]
[406883955,1772264677845,-599.60298507,0.00049999,120]
[406883956,1772264677902,-621.78829552,0.00049999,120]
[406883957,1772264677958,-644.79446246,0.00049999,120]
[406883958,1772264678013,-668.65185757,0.00049999,120]
[406883959,1772264678066,-693.3919763,0.00049999,120]
[406883960,1772264678118,-719.04747942,0.00049999,120]
[406883961,1772264678175,-200.0,0.00049999,40]
[406883962,1772264678230,-207.4,0.00049999,40]
[406883963,1772264678290,-745.65223616,0.00049999,120]
[406883964,1772264678341,-215.0738,0.00049999,40]
[406883965,1772264678395,-773.2413689,0.00049999,120]
[406883966,1772264678450,-801.85129955,0.00049999,120]
[406883967,1772264678501,-223.0315306,0.00049999,40]
[406883968,1772264678556,-831.51979763,0.00049999,120]
[406883969,1772264678609,-862.28603014,0.00049999,120]
[406883970,1772264678664,-231.28369723,0.00049999,40]
[406883971,1772264678720,-894.19061326,0.00049999,120]
[406883972,1772264678773,-239.84119403,0.00049999,40]
[406883973,1772264678832,-927.27566595,0.00049999,120]
[406883974,1772264678886,-248.71531821,0.00049999,40]
[406883975,1772264678939,-961.58486559,0.00049999,120]
[406883976,1772264679094,-257.91778498,0.00049999,40]
[406883977,1772264679157,-997.16350561,0.00049999,120]
[406883978,1772264679217,-267.46074303,0.00049999,40]
[406883979,1772264679270,-277.35679052,0.00049999,40]
[406883980,1772264679321,-287.61899177,0.00049999,40]
[406883981,1772264679371,-298.26089446,0.00049999,40]
[406883982,1772264679420,-309.29654756,0.00049999,40]
[406883983,1772264679471,-364.41897614,0.00049999,40]
[406883984,1772264679522,-500.0,0.00049999,120]
[406883985,1772264679571,-150.0,0.00049999,120]
[406883986,1772264679621,-615.422466,0.00049999,120]
[406883987,1772264679671,-220.61532295,0.00049999,120]
[406883988,1772264679725,-214.83886725,0.00049999,120]
[406883989,1772264679779,-150.0,0.00049999,120]
[406883990,1772264679834,-500.0,0.00049999,120]
[406883991,1772264679890,-500.0,0.00049999,120]
[406883992,1772264679944,-283.96149281,0.00049999,120]
[406883993,1772264679997,-500.0,0.00049999,120]
[406883994,1772264680050,-500.0,0.00049999,120]
[406883995,1772264680105,-500.0,0.00049999,120]
[406883996,1772264680159,-520.94426356,0.00049999,120]
[406883997,1772264680211,-500.0,0.00049999,120]
[406883998,1772264680264,-500.0,0.00049999,120]
[406883999,1772264680318,-500.0,0.00049999,120]
[406884000,1772264680373,-150.0,0.00049999,120]
[406884001,1772264680428,-500.0,0.00049999,120]
[406884002,1772264680485,-150.0,0.00049999,120]
[406884003,1772264680537,-150.0,0.00049999,120]
[406884004,1772264680588,-500.0,0.00049999,120]
[406884005,1772264680643,-150.0,0.00049999,120]
[406884006,1772264680699,-264.09605637,0.00049999,120]
[406884007,1772264680752,-500.0,0.00049999,120]
[406884008,1772264680807,-218.4185703,0.00049999,120]
[406884009,1772264680860,-207.21306787,0.00049999,120]
[406884010,1772264680914,-150.0,0.00049999,120]
[406884011,1772264680967,-288.1281186,0.00049999,120]
[406884012,1772264681021,-150.0,0.00049999,120]
[406884013,1772264681075,-286.83509859,0.00049999,120]
[406884014,1772264681132,-150.0,0.00049999,120]
[406884015,1772264681190,-150.0,0.00049999,120]
[406884016,1772264681243,-261.85883987,0.00049999,120]
[406884017,1772264681296,-500.0,0.00049999,120]
[406884018,1772264681350,-150.0,0.00049999,120]
[406884019,1772264681404,-150.0,0.00049999,120]
[406884020,1772264681456,-500.0,0.00049999,120]
[406884021,1772264681507,-200.0,0.00049999,120]
[406884022,1772264681557,-152.77559653,0.00049999,120]
[406884023,1772264681607,-500.0,0.00049999,120]
[406884024,1772264681656,-196.9807025,0.00049999,120]
[406884025,1772264681708,-500.0,0.00049999,120]
[406884026,1772264681838,-162.55414712,0.00049999,120]
[406884027,1772264681908,-500.0,0.00049999,120]
[406884028,1772264681964,-248.05139013,0.00049999,120]
[406884029,1772264682017,-500.0,0.00049999,120]
[406884030,1772264682068,-150.0,0.00049999,120]
[406884031,1772264682119,-500.0,0.00049999,120]
[406884032,1772264682171,-447.88483721,0.00049999,120]
[406884033,1772264682223,-155.96966553,0.00049999,120]
[406884034,1772264682273,-256.8870596,0.00049999,120]
[406884035,1772264682331,-379758.09332324,0.0005,80]
[406884036,1772264682390,-1000000.0,0.0005,80]
[406884037,1772264682448,-1000000.0,0.0005,80]
[406884038,1772264682505,-1000000.0,0.0005,82]
[406884039,1772264682561,-1000000.0,0.0005,87]
[406884040,1772264682616,-583441.47213328,0.0005,90]
[406884042,1772264698366,-500.0,0.00048318,60]
[406884043,1772264698422,-500.0,0.00048318,60]
[406884044,1772264698483,-500.0,0.00048866,60]
[406884045,1772264698540,-500.0,0.00049414,60]
[406884046,1772264698594,-500.0,0.00049414,60]
[406884047,1772264698652,-150.0,0.00049999,120]
[406884048,1772264698708,-150.0,0.00049999,120]
[406884049,1772264699055,-161.87877385,0.00049999,120]
[406884050,1772264699111,-500.0,0.00049999,120]
[406884051,1772264699172,-150.0,0.00049999,120]
[406884052,1772264699230,-500.0,0.00049999,120]
[406884053,1772264699298,-150.0,0.00049999,120]
[406884054,1772264699357,-500.0,0.00049999,120]
[406884055,1772264699420,-219.64873513,0.00049999,120]
[406884056,1772264699476,-150.0,0.00049999,120]
[406884057,1772264699532,-150.0,0.00049999,120]
[406884058,1772264699589,-187.38563793,0.00049999,120]
[406884059,1772264699650,-5237.61594228,0.00049999,120]
[406884060,1772264699713,-5237.61594228,0.00049999,120]
[406884061,1772264699777,-5237.61594228,0.00049999,120]
[406884062,1772264699844,-416558.52786672,0.0005,90]
[406884063,1772264699911,-565307.0,0.0005,67]
[406884064,1772264699974,-1000000.0,0.0005,62]
[406884065,1772264700031,-969.76,0.0005,120]
[406884066,1772264700090,-193.95,0.0005,120]
[406884067,1772264700163,-1659658.0,0.0005,120]
[406884068,1772264700238,-232.75,0.0005,120]
[406884069,1772264700311,-3447.6,0.0005,120]
[406884070,1772264700374,-347.5,0.0005,120]
[406884071,1772264700435,-300.0,0.0005,120]
[406884072,1772264700499,-2669.47,0.0005,120]
[406884073,1772264700556,-878.24484763,0.0005,30]
[406884074,1772264700614,-931.98652043,0.0005,120]
[406884075,1772264700672,-1276.93908,0.0005,60]
[406884076,1772264700729,-609.77497803,0.0005,120]
[406884077,1772264700792,-186.10102818,0.0005,120]
[406884078,1772264700854,-11000.0,0.0005,120]
[406884079,1772264700909,-597.90360576,0.0005,120]
[406884080,1772264700964,-1659.0,0.0005,120]
[406884081,1772264701020,-3155.16,0.0005,120]
[406884082,1772264701076,-1339.56,0.0005,120]
[406884083,1772264701131,-267.92,0.0005,120]
[406884084,1772264701192,-10000.0,0.0005,30]
[406884085,1772264701251,-151.0,0.0005,120]
[406884086,1772264701310,-267.4,0.0005,90]
[406884087,1772264701365,-511.0,0.0005005,33]
[406884088,1772264701422,-500.0,0.00050136,120]
[406884089,1772264701478,-150.0,0.00050213,30]
[406884090,1772264701536,-271.02464005,0.00050404,33]
[406884091,1772264701598,-150.0,0.0005047,30]
[406884092,1772264701664,-250.0,0.00050499,45]
[406884093,1772264701739,-6300.0,0.000505,120]
[406884094,1772264701799,-500.0,0.0005051,60]
[406884095,1772264701863,-500.0,0.0005051,60]
[406884096,1772264701922,-500.0,0.0005051,60]
[406884097,1772264701981,-155.0,0.000506,120]
[406884098,1772264702055,-263.0,0.00050745,120]
[406884099,1772264702129,-493.30053679,0.00050779,30]
[406884100,1772264702193,-50000.0,0.000508,120]
[406884101,1772264702255,-7916.29,0.000508,120]
[406884102,1772264702316,-50000.0,0.000508,70]
[406884103,1772264702370,-50000.0,0.000508,75]
[406884104,1772264702428,-50000.0,0.000508,80]
[406884105,1772264702482,-50000.0,0.000508,85]
[406884106,1772264702539,-2576.42025539,0.00050807,30]
[406884107,1772264702596,-150.0,0.00050856,30]
[406884108,1772264702654,-1419.02129764,0.00050888,120]
[406884109,1772264702710,-5000.0,0.000509,120]
[406884110,1772264702767,-637.39116272,0.000509,120]
[406884111,1772264702825,-157.0,0.000509,120]
[406884112,1772264702982,-500.0,0.00050958,120]
[406884113,1772264703038,-250.0,0.00050999,40]
[406884114,1772264703094,-250.0,0.00050999,77]
[406884115,1772264703152,-999999.0,0.00051,120]
[406884116,1772264703216,-17414.24320691,0.00051,120]
[406884117,1772264715966,-156.106949,0.0004635,30]
[406884118,1772264716030,-224.59077003,0.0004635,30]
[406884119,1772264716099,-156.03189278,0.0004635,30]
[406884120,1772264716160,-158.22059786,0.0004635,30]
[406884121,1772264716229,-207.62504932,0.00049999,120]
[406884122,1772264716288,-532.10514564,0.00049999,120]
[406884123,1772264716349,-500.0,0.00049999,120]
[406884124,1772264716410,-546.10847595,0.00049999,120]
[406884125,1772264716471,-500.0,0.00049999,120]
[406884126,1772264716532,-395.28936856,0.00049999,120]
[406884127,1772264716592,-500.0,0.00049999,120]
[406884128,1772264716809,-596.31817353,0.00049999,120]
[406884129,1772264716873,-500.0,0.00049999,120]
[406884130,1772264716933,-500.0,0.00049999,120]
[406884131,1772264716992,-500.0,0.00049999,120]
[406884132,1772264717053,-500.0,0.00049999,120]
[406884133,1772264717113,-500.0,0.00049999,120]
[406884134,1772264717170,-500.0,0.00049999,120]
[406884135,1772264717229,-500.0,0.00049999,120]
[406884136,1772264717290,-500.0,0.00049999,120]
[406884137,1772264717353,-500.0,0.00049999,120]
[406884138,1772264717415,-500.0,0.00049999,120]
[406884139,1772264717476,-500.0,0.00049999,120]
[406884140,1772264717540,-500.0,0.00049999,120]
[406884141,1772264717602,-500.0,0.00049999,120]
[406884142,1772264717667,-500.0,0.00049999,120]
[406884143,1772264717729,-500.0,0.00049999,120]
[406884144,1772264717788,-424.75034682,0.00049999,120]
[406884145,1772264717854,-500.0,0.00049999,120]
[406884146,1772264717918,-500.0,0.00049999,120]
[406884147,1772264717980,-150.0,0.00050999,120]
[406884148,1772264718038,-150.0,0.00050999,120]
[406884149,1772264718102,-982585.75679309,0.00051,120]
[406884150,1772264718169,-1000000.0,0.00051,120]
[406884151,1772264718234,-1000000.0,0.00051,120]
[406884152,1772264718317,-1000000.0,0.00051,120]
[406884153,1772264718386,-1000000.0,0.00051,120]
[406884154,1772264718457,-3717.09643742,0.00051,120]
[406884155,1772264724547,-843.0,0.00049315,120]
[406884156,1772264724652,-843.0,0.00049863,120]
[406884157,1772264724755,-996282.90356258,0.00051,120]
[406884158,1772264724841,-284.508913,0.00051,30]
[406884159,1772264724933,-150.82454411,0.00051,120]
[406884160,1772264725022,-236.2,0.00051,40]
[406884161,1772264725104,-1655.0,0.00051,120]
[406884162,1772264725187,-54700.0,0.00051,33]
[406884163,1772264725263,-264.3202,0.00051,120]
[406884164,1772264725344,-19974.26,0.00051,120]
[406884165,1772264725421,-3622.55524906,0.00051,120]
[406884166,1772264725493,-851.84288989,0.00051,120]
[406884167,1772264725563,-405.15069859,0.00051,120]
[406884168,1772264725629,-202.132314,0.00051,30]
[406884169,1772264725703,-194.02,0.00051,120]
[406884170,1772264725778,-844.77782133,0.00051084,30]
[406884171,1772264725854,-6070.71038886,0.0005117,30]
[406884172,1772264725929,-3000.0,0.000512,120]
[406884173,1772264726000,-10466.45999901,0.00051234,120]
[406884174,1772264726071,-162.92719058,0.000513,120]
[406884175,1772264726143,-164.95280072,0.000513,120]
[406884176,1772264726210,-168.24342824,0.000513,120]
[406884177,1772264726288,-954.87289506,0.000513,120]
[406884178,1772264726353,-219.4871469,0.000513,120]
[406884179,1772264726421,-185.58111583,0.000513,120]
[406884180,1772264726485,-180.23944072,0.000513,120]
[406884181,1772264726555,-244.0,0.00051367,120]
[406884182,1772264726624,-250.0,0.00051399,60]
[406884183,1772264726691,-771.81483162,0.00051499,30]
[406884184,1772264726754,-250.0,0.00051499,30]
[406884185,1772264726828,-250.0,0.00051499,84]
[406884186,1772264726907,-250.0,0.00051499,120]
[406884187,1772264726975,-54000.0,0.000515,33]
[406884188,1772264727034,-1293.68446039,0.000515,120]
[406884189,1772264727095,-3839762.53010951,0.000515,120]
[406884190,1772264731285,-163.1370633,0.0004635,30]
[406884191,1772264731341,-153.12135405,0.0004635,30]
[406884192,1772264731397,-154.30511081,0.0004635,30]
[406884193,1772264731455,-201.09208288,0.0004635,30]
[406884194,1772264731513,-506.51,0.0005,30]
[406884195,1772264731569,-843.0,0.00050411,120]
[406884196,1772264731631,-58139.26008297,0.000515,53]
[406884197,1772264731690,-1160237.46989049,0.000515,120]
[406884198,1772264731748,-3779602.1044155,0.000515,120]
[406884199,1772264735601,-843.0,0.00050959,120]
[406884200,1772264735669,-1220397.8955845,0.000515,120]
[406884201,1772264735737,-3778759.1044155,0.000515,120]
[406884202,1772264759456,-1000000.0,0.0005,120]
[406884203,1772264759512,-1000000.0,0.0005,120]
[406884204,1772264759569,-1000000.0,0.0005,120]
[406884205,1772264759627,-1000000.0,0.0005,120]
[406884206,1772264759684,-1000000.0,0.0005,120]
[406884207,1772264766313,-20000.0,0.00043836,120]
[406884208,1772264766376,-20000.0,0.000495,120]
[406884209,1772264766436,-1000000.0,0.0005,120]
[406884210,1772264766499,-1000000.0,0.0005,120]
[406884211,1772264766558,-500000.0,0.0005,120]
[406884212,1772264766612,-218.97,0.0005,120]
[406884213,1772264766666,-3007.69020954,0.000508,120]
[406884214,1772264766723,-409.76184801,0.00051499,120]
[406884215,1772264766781,-1221240.8955845,0.000515,120]
[406884216,1772264766842,-1000000.0,0.000515,120]
[406884217,1772264766902,-235122.68235795,0.000515,120]
[406884218,1772264769971,-160.06,0.000375,30]
[406884219,1772264770057,-151.0,0.00051499,120]
[406884220,1772264770115,-500.0,0.00051499,120]
[406884221,1772264770175,-500.0,0.00051499,120]
[406884222,1772264770232,-151.0,0.00051499,120]
[406884223,1772264770290,-500.0,0.00051499,120]
[406884224,1772264770351,-500.0,0.00051499,120]
[406884225,1772264770409,-151.0,0.00051499,120]
[406884226,1772264770466,-500.0,0.00051499,120]
[406884227,1772264770525,-518.5,0.00051499,120]
[406884228,1772264770581,-500.0,0.00051499,120]
[406884229,1772264770637,-151.0,0.00051499,120]
[406884230,1772264770694,-500.0,0.00051499,120]
[406884231,1772264770756,-764877.31764205,0.000515,120]
[406884232,1772264770817,-1000000.0,0.000515,120]
[406884233,1772264770870,-61433.0,0.000515,120]
[406884234,1772264770924,-827.0,0.000515,120]
[406884235,1772264770981,-828.0,0.000515,120]
[406884236,1772264771035,-151.0,0.000515,30]
[406884237,1772264771091,-867.22,0.00051507,120]
[406884238,1772264771146,-20000.0,0.000516,120]
[406884239,1772264771209,-500.0,0.00051606,60]
[406884240,1772264771267,-500.0,0.00051606,60]
[406884241,1772264771324,-500.0,0.00051606,60]
[406884242,1772264771391,-500.0,0.0005178,120]
[406884243,1772264771449,-50000.0,0.000518,90]
[406884244,1772264771505,-50000.0,0.000518,95]
[406884245,1772264771561,-50000.0,0.000518,100]
[406884246,1772264771619,-50712.571,0.0005188,60]
[406884247,1772264771679,-273.5559316,0.00051888,120]
[406884248,1772264771742,-495.6923788,0.000519,30]
[406884249,1772264771814,-392.17551313,0.00051928,30]
[406884250,1772264771871,-1000000.0,0.00052,120]
[406884251,1772264771927,-1000000.0,0.00052,120]
[406884252,1772264771982,-305.51431716,0.00052,30]
[406884253,1772264772036,-300.0,0.00052,120]
[406884254,1772264772088,-1000.0,0.00052,90]
[406884255,1772264772140,-52000.0,0.00052,35]
[406884256,1772264772193,-150.0,0.00052,120]
[406884257,1772264772252,-1000.0,0.00052,120]
[406884258,1772264772307,-7083.0,0.00052,120]
[406884259,1772264772360,-1363.24888003,0.00052,60]
[406884260,1772264772416,-560.69603228,0.00052,30]
[406884261,1772264772475,-578.9620026,0.00052,99]
[406884262,1772264772539,-965.76248327,0.00052,120]
[406884263,1772264772593,-359.32636561,0.00052,120]
[406884264,1772264772646,-151.60861911,0.00052,120]
[406884265,1772264772707,-876541.78883436,0.00052,120]
[406884266,1772264782289,-500000.0,0.0005,120]
[406884267,1772264782349,-500000.0,0.0005,120]
[406884268,1772264782409,-500000.0,0.0005,120]
[406884269,1772264782467,-500000.0,0.0005,120]
[406884270,1772264782526,-537.6845,0.00051499,120]
[406884271,1772264782583,-500.0,0.00051499,120]
[406884272,1772264782637,-151.0,0.00051499,120]
[406884273,1772264782687,-500.0,0.00051499,120]
[406884274,1772264782741,-557.5788265,0.00051499,120]
[406884275,1772264782793,-500.0,0.00051499,120]
[406884276,1772264782847,-151.0,0.00051499,120]
[406884277,1772264782904,-578.20924308,0.00051499,120]
[406884278,1772264782960,-500.0,0.00051499,120]
[406884279,1772264783013,-151.0,0.00051499,120]
[406884280,1772264783071,-599.60298507,0.00051499,120]
[406884281,1772264783300,-500.0,0.00051499,120]
[406884282,1772264783353,-151.0,0.00051499,120]
[406884283,1772264783407,-621.78829552,0.00051499,120]
[406884284,1772264783459,-500.0,0.00051499,120]
[406884285,1772264783513,-151.0,0.00051499,120]
[406884286,1772264783574,-644.79446246,0.00051499,120]
[406884287,1772264783627,-151.0,0.00051499,120]
[406884288,1772264783683,-500.0,0.00051499,120]
[406884289,1772264783744,-500.0,0.00051499,120]
[406884290,1772264783805,-151.0,0.00051499,120]
[406884291,1772264783868,-668.65185757,0.00051499,120]
[406884292,1772264783936,-500.0,0.00051499,120]
[406884293,1772264784004,-151.0,0.00051499,120]
[406884294,1772264784064,-500.0,0.00051499,120]
[406884295,1772264784135,-693.3919763,0.00051499,120]
[406884296,1772264784192,-500.0,0.00051499,120]
[406884297,1772264784249,-151.0,0.00051499,120]
[406884298,1772264784305,-500.0,0.00051499,120]
[406884299,1772264784363,-719.04747942,0.00051499,120]
[406884300,1772264784420,-500.0,0.00051499,120]
[406884301,1772264784477,-151.0,0.00051499,120]
[406884302,1772264784536,-745.65223616,0.00051499,120]
[406884303,1772264784595,-500.0,0.00051499,120]
[406884304,1772264784651,-151.0,0.00051499,120]
[406884305,1772264784709,-773.2413689,0.00051499,120]
[406884306,1772264784771,-500.0,0.00051499,120]
[406884307,1772264784834,-151.0,0.00051499,120]
[406884308,1772264784893,-801.85129955,0.00051499,120]
[406884309,1772264784949,-500.0,0.00051499,120]
[406884310,1772264785004,-500.0,0.00051499,120]
[406884311,1772264785067,-151.0,0.00051499,120]
[406884312,1772264785126,-831.51979763,0.00051499,120]
[406884313,1772264785188,-500.0,0.00051499,120]
[406884314,1772264785248,-151.0,0.00051499,120]
[406884315,1772264785309,-500.0,0.00051499,120]
[406884316,1772264785366,-151.0,0.00051499,120]
[406884317,1772264785425,-862.28603014,0.00051499,120]
[406884318,1772264785483,-500.0,0.00051499,120]
[406884319,1772264785539,-151.0,0.00051499,120]
[406884320,1772264785596,-500.0,0.00051499,120]
[406884321,1772264785667,-894.19061326,0.00051499,120]
[406884322,1772264785725,-500.0,0.00051499,120]
[406884323,1772264785784,-927.27566595,0.00051499,120]
[406884324,1772264785848,-961.58486559,0.00051499,120]
[406884325,1772264785908,-997.16350561,0.00051499,120]
[406884326,1772264785968,-1000000.0,0.00052,120]
[406884327,1772264786028,-1000000.0,0.00052,120]
[406884328,1772264786087,-973168.48499129,0.00052,120]
[406884329,1772264791589,-500.0,0.00049855,60]
[406884330,1772264791658,-500000.0,0.0005,120]
[406884331,1772264791722,-500000.0,0.0005,120]
[406884332,1772264791793,-500000.0,0.0005,120]
[406884333,1772264791855,-500000.0,0.0005,120]
[406884334,1772264791917,-500000.0,0.0005,120]
[406884335,1772264791984,-500000.0,0.0005,120]
[406884336,1772264792045,-500000.0,0.0005,120]
[406884337,1772264792107,-500000.0,0.0005,120]
[406884338,1772264792165,-500000.0,0.0005,120]
[406884339,1772264792226,-499500.0,0.0005,120]
[406884340,1772264802178,-500.0,0.0005,120]
[406884341,1772264802243,-500000.0,0.0005,120]
[406884342,1772264802302,-1000000.0,0.0005,120]
[406884343,1772264802362,-1000000.0,0.0005,120]
[406884344,1772264802420,-1000000.0,0.0005,120]
[406884345,1772264802479,-1000000.0,0.0005,120]
[406884346,1772264802538,-499500.0,0.0005,120]
[406884347,1772264815933,-437.05,0.000416,30]
[406884348,1772264816004,-437.05,0.000431,30]
[406884349,1772264816062,-437.05,0.000461,30]
[406884350,1772264816123,-437.05,0.000492,30]
[406884351,1772264816188,-1000000.0,0.0005,120]
[406884352,1772264816250,-1000000.0,0.0005,120]
[406884353,1772264816312,-1000000.0,0.0005,120]
[406884354,1772264816366,-150.0,0.0005,120]
[406884355,1772264816427,-323000.0,0.0005,120]
[406884356,1772264816485,-500.0,0.00050951,60]
[406884357,1772264816541,-500.0,0.00051499,120]
[406884358,1772264816596,-500.0,0.00051499,120]
[406884359,1772264816648,-500.0,0.00051499,120]
[406884360,1772264816700,-500.0,0.00051499,120]
[406884361,1772264816754,-500.0,0.00051499,120]
[406884362,1772264816807,-500.0,0.00051499,120]
[406884363,1772264816861,-500.0,0.00051499,120]
[406884364,1772264816918,-500.0,0.00051499,120]
[406884365,1772264816988,-500.0,0.00051499,120]
[406884366,1772264817042,-500.0,0.00051499,120]
[406884367,1772264817092,-500.0,0.00051499,120]
[406884368,1772264817142,-500.0,0.00051499,120]
[406884369,1772264817195,-500.0,0.00051499,120]
[406884370,1772264817246,-500.0,0.00051499,120]
[406884371,1772264817301,-500.0,0.00051499,120]
[406884372,1772264817353,-500.0,0.00051499,120]
[406884373,1772264817412,-26831.51500871,0.00052,120]
[406884374,1772264817470,-1000000.0,0.00052,120]
[406884375,1772264817523,-5203.45367239,0.00052,30]
[406884376,1772264817576,-634566.8313189,0.00052,120]
[406884377,1772264821597,-1000000.0,0.00051,120]
[406884378,1772264821656,-1000000.0,0.00051,120]
[406884379,1772264821713,-1000000.0,0.00051,120]
[406884380,1772264821774,-1000000.0,0.00051,120]
[406884381,1772264822001,-1000000.0,0.00051,120]
[406884382,1772264824966,-572.92373703,0.000499,120]
[406884383,1772264825031,-1000000.0,0.00051,120]
[406884384,1772264825093,-1000000.0,0.00051,120]
[406884385,1772264825156,-1000000.0,0.00051,120]
[406884386,1772264825230,-1000000.0,0.00051,120]
[406884387,1772264825293,-999427.07626297,0.00051,120]
[406884388,1772264828349,-151.0,0.0005,120]
[406884389,1772264828413,-572.92373703,0.00051,120]
[406884390,1772264828477,-1000000.0,0.00051,120]
[406884391,1772264828546,-1000000.0,0.00051,120]
[406884392,1772264828608,-1000000.0,0.00051,120]
[406884393,1772264828672,-1000000.0,0.00051,120]
[406884394,1772264828736,-999276.07626297,0.00051,120]
[406884395,1772264831523,-249.3060658,0.00049996,120]
[406884396,1772264831584,-500.0,0.00050356,60]
[406884397,1772264831648,-723.92373703,0.00051,120]